[Event "Late-Titled-Tuesday-Blitz-June-25-2024"]
[Site "Chess.com"]
[Date "2024.06.25"]
[Round "4"]
[White "Flaccidmoves"]
[Black "SujanaLohani"]
[Result "1/2-1/2"]
[WhiteElo "2534"]
[BlackElo "2297"]
[TimeControl "180+1"]
[EndTime "14:40:03 PDT"]
[Termination "Game drawn by repetition"]

1. e4 {[%clk 0:03:00.9]} 1... c5 {[%clk 0:02:53.1]} 2. a3 {[%clk 0:03:00.3]}
2... Nf6 {[%clk 0:02:51.2]} 3. e5 {[%clk 0:02:59.9]} 3... Nd5 {[%clk 0:02:50.6]}
4. b4 {[%clk 0:02:58.2]} 4... e6 {[%clk 0:02:47.1]} 5. bxc5 {[%clk 0:02:57.1]}
5... Bxc5 {[%clk 0:02:37.2]} 6. d4 {[%clk 0:02:57.3]} 6... Be7 {[%clk
0:02:35.5]} 7. Nf3 {[%clk 0:02:56.6]} 7... Nc6 {[%clk 0:02:34.5]} 8. Bd3 {[%clk
0:02:55.8]} 8... d6 {[%clk 0:02:34.1]} 9. c4 {[%clk 0:02:41.1]} 9... Nc7 {[%clk
0:02:31]} 10. exd6 {[%clk 0:02:37.8]} 10... Bxd6 {[%clk 0:02:30.8]} 11. O-O
{[%clk 0:02:31.8]} 11... h6 {[%clk 0:02:27]} 12. Bb2 {[%clk 0:02:30.1]} 12...
O-O {[%clk 0:02:25.5]} 13. Qe2 {[%clk 0:02:22.2]} 13... Ne8 {[%clk 0:02:20]} 14.
d5 {[%clk 0:02:15.9]} 14... exd5 {[%clk 0:02:18.6]} 15. cxd5 {[%clk 0:02:16.8]}
15... Ne7 {[%clk 0:02:16.7]} 16. Nc3 {[%clk 0:02:11.8]} 16... Bg4 {[%clk
0:02:11.5]} 17. h3 {[%clk 0:02:01.4]} 17... Bh5 {[%clk 0:02:07.7]} 18. Rad1
{[%clk 0:01:59.4]} 18... Nf6 {[%clk 0:02:02.2]} 19. Bb1 {[%clk 0:01:57.1]} 19...
Re8 {[%clk 0:02:00.4]} 20. Qd3 {[%clk 0:01:42.6]} 20... Bg6 {[%clk 0:01:58.5]}
21. Qd4 {[%clk 0:01:42.4]} 21... Nf5 {[%clk 0:01:49.3]} 22. Qd2 {[%clk
0:01:23.9]} 22... Rc8 {[%clk 0:01:44.3]} 23. Rfe1 {[%clk 0:01:23.5]} 23... Qa5
{[%clk 0:01:40.6]} 24. Ne4 {[%clk 0:01:09.5]} 24... Qxd2 {[%clk 0:01:26.4]} 25.
Nxf6+ {[%clk 0:01:09.1]} 25... gxf6 {[%clk 0:01:27.3]} 26. Nxd2 {[%clk
0:01:06.9]} 26... Rxe1+ {[%clk 0:01:27.3]} 27. Rxe1 {[%clk 0:01:06.5]} 27... Be5
{[%clk 0:01:22.9]} 28. Bxe5 {[%clk 0:00:57.2]} 28... fxe5 {[%clk 0:01:21.7]} 29.
Bxf5 {[%clk 0:00:47.3]} 29... Bxf5 {[%clk 0:01:21.3]} 30. Rxe5 {[%clk
0:00:47.9]} 30... Bg6 {[%clk 0:01:18.5]} 31. f4 {[%clk 0:00:40.7]} 31... Rc3
{[%clk 0:01:08.8]} 32. f5 {[%clk 0:00:40]} 32... f6 {[%clk 0:01:08.4]} 33. Re7
{[%clk 0:00:38]} 33... Bxf5 {[%clk 0:01:07.2]} 34. Rxb7 {[%clk 0:00:34.8]} 34...
Rxa3 {[%clk 0:01:07]} 35. Nf3 {[%clk 0:00:30]} 35... Rd3 {[%clk 0:00:55.4]} 36.
Rxa7 {[%clk 0:00:26.7]} 36... Rxd5 {[%clk 0:00:55.4]} 37. Kh2 {[%clk 0:00:27.2]}
37... Be4 {[%clk 0:00:54]} 38. Nh4 {[%clk 0:00:26.6]} 38... Rd3 {[%clk
0:00:51.5]} 39. g4 {[%clk 0:00:22.4]} 39... Rd5 {[%clk 0:00:46.1]} 40. Re7
{[%clk 0:00:20.5]} 40... Bh7 {[%clk 0:00:43.8]} 41. Kg3 {[%clk 0:00:20.1]} 41...
h5 {[%clk 0:00:44.2]} 42. Nf3 {[%clk 0:00:19.1]} 42... hxg4 {[%clk 0:00:43.9]}
43. hxg4 {[%clk 0:00:20]} 43... Bg6 {[%clk 0:00:42.4]} 44. Nh4 {[%clk
0:00:19.9]} 44... Bh7 {[%clk 0:00:38.9]} 45. Nf3 {[%clk 0:00:20.4]} 45... Rd3
{[%clk 0:00:30.3]} 46. Kf4 {[%clk 0:00:20.3]} 46... Rd5 {[%clk 0:00:30.2]} 47.
Ra7 {[%clk 0:00:20.1]} 47... Bg6 {[%clk 0:00:28.9]} 48. Ra6 {[%clk 0:00:19.9]}
48... Kg7 {[%clk 0:00:24.4]} 49. Ra7+ {[%clk 0:00:20.3]} 49... Bf7 {[%clk
0:00:21.1]} 50. Rc7 {[%clk 0:00:19.4]} 50... Kg8 {[%clk 0:00:19.9]} 51. Nh4
{[%clk 0:00:19]} 51... Be6 {[%clk 0:00:16.9]} 52. Nf5 {[%clk 0:00:17.1]} 52...
Bxf5 {[%clk 0:00:12.8]} 53. gxf5 {[%clk 0:00:18]} 53... Kf8 {[%clk 0:00:12.6]}
54. Kg4 {[%clk 0:00:17.5]} 54... Re5 {[%clk 0:00:11.7]} 55. Rh7 {[%clk 0:00:17]}
55... Kg8 {[%clk 0:00:11.3]} 56. Rd7 {[%clk 0:00:13]} 56... Kf8 {[%clk
0:00:11.3]} 57. Rd1 {[%clk 0:00:13.2]} 57... Kg8 {[%clk 0:00:11.7]} 58. Kf4
{[%clk 0:00:11.6]} 58... Kf7 {[%clk 0:00:11.9]} 59. Rh1 {[%clk 0:00:11.6]} 59...
Ra5 {[%clk 0:00:10.6]} 60. Rh7+ {[%clk 0:00:11]} 60... Kg8 {[%clk 0:00:11.2]}
61. Re7 {[%clk 0:00:11.1]} 61... Kf8 {[%clk 0:00:11.1]} 62. Rb7 {[%clk
0:00:10.8]} 62... Ra4+ {[%clk 0:00:10.7]} 63. Kg3 {[%clk 0:00:11.1]} 63... Re4
{[%clk 0:00:10.3]} 64. Ra7 {[%clk 0:00:10.6]} 64... Re5 {[%clk 0:00:07.6]} 65.
Kg4 {[%clk 0:00:10.7]} 65... Rb5 {[%clk 0:00:07.7]} 66. Rc7 {[%clk 0:00:09.6]}
66... Rd5 {[%clk 0:00:07.8]} 67. Rc6 {[%clk 0:00:09.7]} 67... Kg7 {[%clk
0:00:06.3]} 68. Rc4 {[%clk 0:00:10.1]} 68... Re5 {[%clk 0:00:05.9]} 69. Rf4
{[%clk 0:00:10.6]} 69... Rd5 {[%clk 0:00:06.3]} 70. Rf1 {[%clk 0:00:11.1]} 70...
Re5 {[%clk 0:00:06.8]} 71. Kf4 {[%clk 0:00:11.3]} 71... Rd5 {[%clk 0:00:07.1]}
72. Rh1 {[%clk 0:00:11.8]} 72... Rd4+ {[%clk 0:00:06.8]} 73. Ke3 {[%clk
0:00:11.8]} 73... Rd5 {[%clk 0:00:07.7]} 74. Ke4 {[%clk 0:00:12.4]} 74... Re5+
{[%clk 0:00:08.3]} 75. Kf4 {[%clk 0:00:13.1]} 75... Ra5 {[%clk 0:00:09.2]} 76.
Rg1+ {[%clk 0:00:13.8]} 76... Kf7 {[%clk 0:00:08.9]} 77. Kg4 {[%clk 0:00:13.9]}
77... Ra4+ {[%clk 0:00:09.4]} 78. Kh5 {[%clk 0:00:14.1]} 78... Rf4 {[%clk
0:00:09.9]} 79. Ra1 {[%clk 0:00:07.4]} 79... Rxf5+ {[%clk 0:00:09.8]} 80. Kg4
{[%clk 0:00:08]} 80... Re5 {[%clk 0:00:10.2]} 81. Ra6 {[%clk 0:00:07.2]} 81...
Kg6 {[%clk 0:00:10.3]} 82. Rb6 {[%clk 0:00:07]} 82... Rc5 {[%clk 0:00:10.1]} 83.
Ra6 {[%clk 0:00:06.9]} 83... Rc4+ {[%clk 0:00:10.2]} 84. Kg3 {[%clk 0:00:07.1]}
84... Kg5 {[%clk 0:00:10.8]} 85. Ra3 {[%clk 0:00:07.4]} 85... f5 {[%clk
0:00:10.9]} 86. Kf3 {[%clk 0:00:07.7]} 86... Rh4 {[%clk 0:00:10.5]} 87. Kg3
{[%clk 0:00:07.8]} 87... f4+ {[%clk 0:00:11.1]} 88. Kg2 {[%clk 0:00:06.9]} 88...
Kg4 {[%clk 0:00:11.6]} 89. Ra8 {[%clk 0:00:06.5]} 89... f3+ {[%clk 0:00:09]} 90.
Kg1 {[%clk 0:00:06.4]} 90... Kg3 {[%clk 0:00:05.2]} 91. Rf8 {[%clk 0:00:04.1]}
91... Rg4 {[%clk 0:00:03.6]} 92. Rf7 {[%clk 0:00:03.2]} 92... Rh4 {[%clk
0:00:01.8]} 93. Rg7+ {[%clk 0:00:02]} 93... Rg4 {[%clk 0:00:02.3]} 94. Rf7
{[%clk 0:00:02.5]} 94... Rf4 {[%clk 0:00:03.1]} 95. Rxf4 {[%clk 0:00:01.7]}
95... Kxf4 {[%clk 0:00:04]} 96. Kf2 {[%clk 0:00:02.3]} 96... Kg4 {[%clk
0:00:04.6]} 97. Kf1 {[%clk 0:00:02.8]} 97... Kg3 {[%clk 0:00:05.1]} 98. Kg1
{[%clk 0:00:03.3]} 98... Kg4 {[%clk 0:00:05.8]} 99. Kf2 {[%clk 0:00:03.4]} 99...
Kf4 {[%clk 0:00:06.6]} 100. Kf1 {[%clk 0:00:03.9]} 100... Ke3 {[%clk 0:00:07.5]}
101. Ke1 {[%clk 0:00:04.2]} 101... Ke4 {[%clk 0:00:08.4]} 102. Kf2 {[%clk
0:00:04.7]} 102... Kf4 {[%clk 0:00:09.3]} 103. Kf1 {[%clk 0:00:05.3]} 103... Ke3
{[%clk 0:00:09.9]} 104. Ke1 {[%clk 0:00:05.7]} 104... Ke4 {[%clk 0:00:10.8]}
105. Kf2 {[%clk 0:00:06.1]} 105... Kf4 {[%clk 0:00:10.7]} 1/2-1/2

[Event "Late-Titled-Tuesday-Blitz-June-25-2024"]
[Site "Chess.com"]
[Date "2024.06.25"]
[Round "5"]
[White "albayo"]
[Black "Andrey-Ivanov2011"]
[Result "1-0"]
[WhiteElo "2401"]
[BlackElo "2112"]
[TimeControl "180+1"]
[EndTime "14:49:33 PDT"]
[Termination "albayo won by resignation"]

1. Nf3 {[%clk 0:03:00.9]} 1... Nf6 {[%clk 0:02:59.5]} 2. g3 {[%clk 0:02:58.8]}
2... g6 {[%clk 0:02:58.3]} 3. Bg2 {[%clk 0:02:59.7]} 3... Bg7 {[%clk 0:02:59]}
4. O-O {[%clk 0:02:59.7]} 4... O-O {[%clk 0:02:59.5]} 5. c4 {[%clk 0:03:00.2]}
5... c5 {[%clk 0:02:59.2]} 6. d4 {[%clk 0:02:59.9]} 6... cxd4 {[%clk 0:02:57.2]}
7. Nxd4 {[%clk 0:03:00.8]} 7... d5 {[%clk 0:02:56.8]} 8. Qc2 {[%clk 0:02:45.6]}
8... Nc6 {[%clk 0:02:52.7]} 9. Nxc6 {[%clk 0:02:35.5]} 9... bxc6 {[%clk
0:02:53.6]} 10. Rd1 {[%clk 0:02:35.4]} 10... Bf5 {[%clk 0:02:50.2]} 11. Qa4
{[%clk 0:02:32]} 11... Bxb1 {[%clk 0:02:43.9]} 12. Rxb1 {[%clk 0:02:30.8]} 12...
e6 {[%clk 0:02:44.3]} 13. b3 {[%clk 0:02:19]} 13... Qb6 {[%clk 0:02:42.6]} 14.
Be3 {[%clk 0:02:12]} 14... Qb7 {[%clk 0:02:39.6]} 15. cxd5 {[%clk 0:02:08]}
15... cxd5 {[%clk 0:02:36.5]} 16. Bd4 {[%clk 0:02:06.6]} 16... h5 {[%clk
0:02:31.2]} 17. Bxf6 {[%clk 0:02:05.7]} 17... Bxf6 {[%clk 0:02:32.1]} 18. e4
{[%clk 0:02:05.9]} 18... d4 {[%clk 0:02:27.4]} 19. e5 {[%clk 0:02:05.6]} 19...
Qb6 {[%clk 0:02:22.3]} 1-0

[Event "Late-Titled-Tuesday-Blitz-June-25-2024"]
[Site "Chess.com"]
[Date "2024.06.25"]
[Round "5"]
[White "farzadbfd"]
[Black "Frankie_Badacsonyi"]
[Result "1-0"]
[WhiteElo "2703"]
[BlackElo "2497"]
[TimeControl "180+1"]
[EndTime "14:49:54 PDT"]
[Termination "farzadbfd won by resignation"]

1. e4 {[%clk 0:03:00.9]} 1... c5 {[%clk 0:02:58.6]} 2. Nc3 {[%clk 0:03:00.7]}
2... Nc6 {[%clk 0:02:57.9]} 3. g3 {[%clk 0:03:01]} 3... g6 {[%clk 0:02:57.4]} 4.
Bg2 {[%clk 0:03:01.6]} 4... Bg7 {[%clk 0:02:57.7]} 5. d3 {[%clk 0:03:02.4]} 5...
e6 {[%clk 0:02:57.7]} 6. Be3 {[%clk 0:03:03]} 6... b6 {[%clk 0:02:56.1]} 7. Qd2
{[%clk 0:03:03.3]} 7... Nge7 {[%clk 0:02:55.7]} 8. Bh6 {[%clk 0:03:03.2]} 8...
O-O {[%clk 0:02:55.4]} 9. h4 {[%clk 0:03:03.1]} 9... Re8 {[%clk 0:02:35.6]} 10.
Bxg7 {[%clk 0:03:02.4]} 10... Kxg7 {[%clk 0:02:36.5]} 11. h5 {[%clk 0:03:03]}
11... Rh8 {[%clk 0:02:35.9]} 12. Nge2 {[%clk 0:02:51]} 12... Bb7 {[%clk
0:02:28.9]} 13. O-O-O {[%clk 0:02:50.3]} 13... d5 {[%clk 0:02:13.3]} 14. hxg6
{[%clk 0:02:43.7]} 14... fxg6 {[%clk 0:01:57.6]} 15. Nf4 {[%clk 0:02:37.2]}
15... Qd6 {[%clk 0:01:51.7]} 16. exd5 {[%clk 0:02:35.2]} 16... exd5 {[%clk
0:01:51.6]} 17. Nfxd5 {[%clk 0:02:32.6]} 17... Nxd5 {[%clk 0:01:49.3]} 18. Qh6+
{[%clk 0:02:31.6]} 18... Kf6 {[%clk 0:01:41.3]} 19. Ne4+ {[%clk 0:02:29.8]} 1-0

[Event "Late-Titled-Tuesday-Blitz-June-25-2024"]
[Site "Chess.com"]
[Date "2024.06.25"]
[Round "5"]
[White "Supergiuly"]
[Black "Orest_Vovk"]
[Result "0-1"]
[WhiteElo "2359"]
[BlackElo "2551"]
[TimeControl "180+1"]
[EndTime "14:50:23 PDT"]
[Termination "Orest_Vovk won by resignation"]

1. e4 {[%clk 0:03:00.9]} 1... Nf6 {[%clk 0:02:56.3]} 2. Nc3 {[%clk 0:02:59.8]}
2... d5 {[%clk 0:02:56.1]} 3. exd5 {[%clk 0:02:59.4]} 3... Nxd5 {[%clk
0:02:55.8]} 4. Bc4 {[%clk 0:02:58.6]} 4... Be6 {[%clk 0:02:55.5]} 5. Qf3 {[%clk
0:02:57.3]} 5... c6 {[%clk 0:02:55.1]} 6. Nge2 {[%clk 0:02:56]} 6... Nc7 {[%clk
0:02:54.1]} 7. Bxe6 {[%clk 0:02:55.1]} 7... Nxe6 {[%clk 0:02:55]} 8. O-O {[%clk
0:02:54.5]} 8... Nd7 {[%clk 0:02:55.2]} 9. d4 {[%clk 0:02:53.6]} 9... Nf6 {[%clk
0:02:51.1]} 10. Be3 {[%clk 0:02:49.2]} 10... Nc7 {[%clk 0:02:50.1]} 11. Rad1
{[%clk 0:02:45.2]} 11... Ncd5 {[%clk 0:02:50]} 12. Nxd5 {[%clk 0:02:38.8]} 12...
Qxd5 {[%clk 0:02:49.4]} 13. Qxd5 {[%clk 0:02:34.9]} 13... cxd5 {[%clk
0:02:49.7]} 14. Bf4 {[%clk 0:02:33.5]} 14... e6 {[%clk 0:02:49]} 15. Nc3 {[%clk
0:02:32.8]} 15... Rc8 {[%clk 0:02:48.7]} 16. Rd2 {[%clk 0:02:31.2]} 16... Bb4
{[%clk 0:02:48]} 17. Rd3 {[%clk 0:02:10]} 17... Bxc3 {[%clk 0:02:43.2]} 18. bxc3
{[%clk 0:02:10.9]} 18... Ne4 {[%clk 0:02:36.6]} 19. Rb1 {[%clk 0:02:08.1]} 19...
b6 {[%clk 0:02:36.8]} 20. Rb3 {[%clk 0:02:04.7]} 20... Kd7 {[%clk 0:02:33.8]}
21. f3 {[%clk 0:02:04]} 21... Nd6 {[%clk 0:02:32.9]} 22. Ra3 {[%clk 0:02:02.9]}
22... a5 {[%clk 0:02:32.3]} 23. Rb3 {[%clk 0:02:02.2]} 23... Nc4 {[%clk
0:02:31]} 24. Bg3 {[%clk 0:01:54.4]} 24... Rc6 {[%clk 0:02:30.3]} 25. Rb1 {[%clk
0:01:52.1]} 25... Na3 {[%clk 0:02:27.5]} 26. Rb2 {[%clk 0:01:49.8]} 26... Rhc8
{[%clk 0:02:27.1]} 27. Be1 {[%clk 0:01:43.7]} 27... Kc7 {[%clk 0:02:22.2]} 28.
Kf2 {[%clk 0:01:41.9]} 28... Kb7 {[%clk 0:02:22]} 29. Ke3 {[%clk 0:01:42.1]}
29... Nc4+ {[%clk 0:02:21.4]} 0-1

[Event "Late-Titled-Tuesday-Blitz-June-25-2024"]
[Site "Chess.com"]
[Date "2024.06.25"]
[Round "5"]
[White "MITerryble"]
[Black "Jospem"]
[Result "1/2-1/2"]
[WhiteElo "2980"]
[BlackElo "3050"]
[TimeControl "180+1"]
[EndTime "14:50:24 PDT"]
[Termination "Game drawn by repetition"]

1. b3 {[%clk 0:03:00.9]} 1... Nf6 {[%clk 0:02:55.2]} 2. Bb2 {[%clk 0:03:00.8]}
2... d5 {[%clk 0:02:52.9]} 3. e3 {[%clk 0:03:00.4]} 3... e6 {[%clk 0:02:48.9]}
4. f4 {[%clk 0:02:55.8]} 4... Bd6 {[%clk 0:02:48.3]} 5. Nf3 {[%clk 0:02:55.8]}
5... O-O {[%clk 0:02:48.2]} 6. Be2 {[%clk 0:02:49]} 6... c5 {[%clk 0:02:48.5]}
7. O-O {[%clk 0:02:48.7]} 7... Nc6 {[%clk 0:02:49.2]} 8. Ne5 {[%clk 0:02:49.2]}
8... Bxe5 {[%clk 0:02:38.5]} 9. fxe5 {[%clk 0:02:48.7]} 9... Nd7 {[%clk
0:02:38.6]} 10. d4 {[%clk 0:02:49.2]} 10... Qg5 {[%clk 0:02:32.5]} 11. Rf3
{[%clk 0:02:42.9]} 11... f6 {[%clk 0:02:11]} 12. Rg3 {[%clk 0:02:40.2]} 12...
Qh6 {[%clk 0:02:05.7]} 13. Rh3 {[%clk 0:02:37.8]} 13... Qg5 {[%clk 0:02:05.8]}
14. Rg3 {[%clk 0:02:28.1]} 14... Qh6 {[%clk 0:02:05.9]} 15. Rh3 {[%clk
0:02:08.3]} 15... Qg5 {[%clk 0:01:45.3]} 16. Rg3 {[%clk 0:01:41.9]} 1/2-1/2

[Event "Late-Titled-Tuesday-Blitz-June-25-2024"]
[Site "Chess.com"]
[Date "2024.06.25"]
[Round "5"]
[White "jbking07"]
[Black "katharinareinecke"]
[Result "1-0"]
[WhiteElo "2400"]
[BlackElo "2050"]
[TimeControl "180+1"]
[EndTime "14:50:26 PDT"]
[Termination "jbking07 won by resignation"]

1. e4 {[%clk 0:03:00.9]} 1... c6 {[%clk 0:02:57.9]} 2. d4 {[%clk 0:03:00.6]}
2... d5 {[%clk 0:02:57.4]} 3. f3 {[%clk 0:03:00.9]} 3... dxe4 {[%clk 0:02:56.2]}
4. fxe4 {[%clk 0:03:01.4]} 4... e5 {[%clk 0:02:56.7]} 5. Nf3 {[%clk 0:03:01.1]}
5... Bg4 {[%clk 0:02:43.7]} 6. Bc4 {[%clk 0:03:00.8]} 6... Bd6 {[%clk
0:02:31.6]} 7. O-O {[%clk 0:02:54.9]} 7... Ne7 {[%clk 0:02:22]} 8. Bxf7+ {[%clk
0:02:51.5]} 8... Kd7 {[%clk 0:02:16]} 9. Nxe5+ {[%clk 0:02:48.2]} 9... Bxe5
{[%clk 0:02:09]} 10. Qxg4+ {[%clk 0:02:47.6]} 10... Kc7 {[%clk 0:02:08.6]} 11.
dxe5 {[%clk 0:02:46.7]} 11... Qd4+ {[%clk 0:02:07.1]} 12. Kh1 {[%clk 0:02:46.9]}
12... h5 {[%clk 0:02:04.4]} 13. Qxg7 {[%clk 0:02:41]} 13... Nd7 {[%clk
0:02:00.9]} 14. Be6 {[%clk 0:02:36.7]} 14... Rag8 {[%clk 0:01:50]} 15. Qxe7
{[%clk 0:02:24]} 15... Qxe4 {[%clk 0:01:37.9]} 16. Qd6+ {[%clk 0:02:17.6]} 16...
Kb6 {[%clk 0:01:32.7]} 17. Bxg8 {[%clk 0:02:15.7]} 17... Rxg8 {[%clk 0:01:31.7]}
18. Qd2 {[%clk 0:02:15.1]} 18... Nxe5 {[%clk 0:01:28.2]} 19. Qe3+ {[%clk
0:02:12.9]} 1-0

[Event "Late-Titled-Tuesday-Blitz-June-25-2024"]
[Site "Chess.com"]
[Date "2024.06.25"]
[Round "5"]
[White "jcibarra"]
[Black "djano"]
[Result "1-0"]
[WhiteElo "2921"]
[BlackElo "2575"]
[TimeControl "180+1"]
[EndTime "14:50:41 PDT"]
[Termination "jcibarra won by resignation"]

1. e4 {[%clk 0:03:00.9]} 1... c5 {[%clk 0:03:00.3]} 2. Nf3 {[%clk 0:03:00.9]}
2... g6 {[%clk 0:03:00.7]} 3. c3 {[%clk 0:02:56]} 3... d5 {[%clk 0:02:59.3]} 4.
exd5 {[%clk 0:02:54.6]} 4... Qxd5 {[%clk 0:03:00.2]} 5. Na3 {[%clk 0:02:54.3]}
5... Bg7 {[%clk 0:02:58.3]} 6. d4 {[%clk 0:02:51.7]} 6... cxd4 {[%clk 0:02:54]}
7. Bc4 {[%clk 0:02:51.1]} 7... Qe4+ {[%clk 0:02:54.5]} 8. Be3 {[%clk 0:02:51.1]}
8... Nh6 {[%clk 0:02:55.1]} 9. Nb5 {[%clk 0:02:47.8]} 9... O-O {[%clk 0:02:54]}
10. cxd4 {[%clk 0:02:47.1]} 10... Nf5 {[%clk 0:02:50.2]} 11. Qe2 {[%clk
0:02:28.8]} 11... Nc6 {[%clk 0:02:44.7]} 12. Nc3 {[%clk 0:02:22.8]} 12... Qg4
{[%clk 0:02:37.5]} 13. h3 {[%clk 0:02:17.9]} 13... Nxe3 {[%clk 0:02:18.4]} 14.
hxg4 {[%clk 0:02:10.4]} 14... Nxg2+ {[%clk 0:02:18.8]} 15. Kf1 {[%clk
0:02:02.2]} 15... Nf4 {[%clk 0:02:18.8]} 16. Qe3 {[%clk 0:01:52.8]} 16... e5
{[%clk 0:02:00.3]} 17. Nxe5 {[%clk 0:01:50.2]} 17... Nxe5 {[%clk 0:01:57.3]} 18.
dxe5 {[%clk 0:01:49.3]} 18... g5 {[%clk 0:01:51]} 19. Qe4 {[%clk 0:01:35.1]}
19... h6 {[%clk 0:01:47.6]} 20. Nd5 {[%clk 0:01:34.3]} 1-0

[Event "Late-Titled-Tuesday-Blitz-June-25-2024"]
[Site "Chess.com"]
[Date "2024.06.25"]
[Round "5"]
[White "Sic_Transit_GM"]
[Black "Statham_01"]
[Result "0-1"]
[WhiteElo "2534"]
[BlackElo "2715"]
[TimeControl "180+1"]
[EndTime "14:51:20 PDT"]
[Termination "Statham_01 won by resignation"]

1. e4 {[%clk 0:02:58.9]} 1... e5 {[%clk 0:02:58.6]} 2. Nc3 {[%clk 0:02:58.5]}
2... Nf6 {[%clk 0:02:59]} 3. Nf3 {[%clk 0:02:59]} 3... Nc6 {[%clk 0:02:58.6]} 4.
d4 {[%clk 0:02:58.3]} 4... exd4 {[%clk 0:02:59.5]} 5. Nxd4 {[%clk 0:02:58.9]}
5... Nxe4 {[%clk 0:03:00.2]} 6. Nxe4 {[%clk 0:02:54]} 6... Qe7 {[%clk
0:03:00.3]} 7. Nxc6 {[%clk 0:02:51.5]} 7... Qxe4+ {[%clk 0:02:59.8]} 8. Be2
{[%clk 0:02:50.7]} 8... dxc6 {[%clk 0:02:58.9]} 9. O-O {[%clk 0:02:50.8]} 9...
Be6 {[%clk 0:02:48.3]} 10. Bg5 {[%clk 0:02:40.5]} 10... Qd5 {[%clk 0:02:24.5]}
11. Qc1 {[%clk 0:02:30.9]} 11... h6 {[%clk 0:02:16.3]} 12. Bh4 {[%clk 0:02:24]}
12... Qe4 {[%clk 0:02:12.7]} 13. f4 {[%clk 0:02:07.9]} 13... Qxe2 {[%clk
0:02:06.7]} 14. f5 {[%clk 0:02:08.1]} 14... Bd5 {[%clk 0:02:00.2]} 15. Bf2
{[%clk 0:01:41.9]} 15... Qg4 {[%clk 0:01:57.2]} 16. Qe3+ {[%clk 0:01:38.1]}
16... Be7 {[%clk 0:01:47.5]} 17. Bg3 {[%clk 0:01:36.2]} 17... Qe4 {[%clk
0:01:26.8]} 18. Qf2 {[%clk 0:01:24.6]} 18... Bc5 {[%clk 0:01:24.8]} 0-1

[Event "Late-Titled-Tuesday-Blitz-June-25-2024"]
[Site "Chess.com"]
[Date "2024.06.25"]
[Round "5"]
[White "Snowball-03"]
[Black "schondeln"]
[Result "1-0"]
[WhiteElo "2636"]
[BlackElo "2379"]
[TimeControl "180+1"]
[EndTime "14:51:29 PDT"]
[Termination "Snowball-03 won by resignation"]

1. d4 {[%clk 0:03:00.9]} 1... d5 {[%clk 0:02:59.7]} 2. Bg5 {[%clk 0:03:00.7]}
2... c6 {[%clk 0:02:54.3]} 3. Nf3 {[%clk 0:02:59.1]} 3... Bf5 {[%clk 0:02:53.7]}
4. e3 {[%clk 0:02:58.8]} 4... Nd7 {[%clk 0:02:53.7]} 5. c4 {[%clk 0:02:58.6]}
5... Ngf6 {[%clk 0:02:53.7]} 6. Nc3 {[%clk 0:02:56.3]} 6... e6 {[%clk
0:02:53.8]} 7. Qb3 {[%clk 0:02:55.9]} 7... Qb6 {[%clk 0:02:45.8]} 8. c5 {[%clk
0:02:55.9]} 8... Qxb3 {[%clk 0:02:45.4]} 9. axb3 {[%clk 0:02:56.8]} 9... a6
{[%clk 0:02:45.9]} 10. b4 {[%clk 0:02:52.7]} 10... Rc8 {[%clk 0:02:45.4]} 11.
Nd2 {[%clk 0:02:52.8]} 11... Be7 {[%clk 0:02:40.5]} 12. Nb3 {[%clk 0:02:52.8]}
12... Bd8 {[%clk 0:02:40.8]} 13. Na5 {[%clk 0:02:52.9]} 13... Bxa5 {[%clk
0:02:40.8]} 14. bxa5 {[%clk 0:02:53.8]} 14... e5 {[%clk 0:02:38.8]} 15. f3
{[%clk 0:02:52.6]} 15... h6 {[%clk 0:02:36.4]} 16. Bh4 {[%clk 0:02:52]} 16...
O-O {[%clk 0:02:31.5]} 17. Kd2 {[%clk 0:02:51.1]} 17... Rfe8 {[%clk 0:02:31]}
18. Ra4 {[%clk 0:02:48.7]} 18... exd4 {[%clk 0:02:20.5]} 19. exd4 {[%clk
0:02:49.6]} 19... g5 {[%clk 0:02:20.2]} 20. Bg3 {[%clk 0:02:47.9]} 20... Nf8
{[%clk 0:02:19.3]} 21. Rb4 {[%clk 0:02:41.2]} 21... Re7 {[%clk 0:02:17.9]} 22.
Bd3 {[%clk 0:02:37]} 22... Bxd3 {[%clk 0:02:16.8]} 23. Kxd3 {[%clk 0:02:37.9]}
23... Rce8 {[%clk 0:02:15.1]} 24. Bd6 {[%clk 0:02:31.4]} 24... Rd7 {[%clk
0:02:09.2]} 25. Ra1 {[%clk 0:02:30]} 25... Ne6 {[%clk 0:02:06]} 26. g3 {[%clk
0:02:28.1]} 26... Nd8 {[%clk 0:01:53.4]} 27. Na4 {[%clk 0:02:16.1]} 27... Ne6
{[%clk 0:01:40.8]} 28. Ra3 {[%clk 0:02:12.7]} 28... Nd8 {[%clk 0:00:59.3]} 29.
Nb6 {[%clk 0:02:10.5]} 29... Re6 {[%clk 0:00:56.2]} 30. Nxd7 {[%clk 0:02:09.6]}
30... Nxd7 {[%clk 0:00:57.1]} 31. Bc7 {[%clk 0:02:09.4]} 31... Re8 {[%clk
0:00:55.1]} 32. Bxd8 {[%clk 0:02:09.2]} 32... Rxd8 {[%clk 0:00:55.3]} 33. Rxb7
{[%clk 0:02:09.8]} 33... Nxc5+ {[%clk 0:00:55.6]} 34. dxc5 {[%clk 0:02:09.5]}
1-0

[Event "Late-Titled-Tuesday-Blitz-June-25-2024"]
[Site "Chess.com"]
[Date "2024.06.25"]
[Round "5"]
[White "glucolisis04"]
[Black "Kildepiotr"]
[Result "0-1"]
[WhiteElo "2292"]
[BlackElo "2703"]
[TimeControl "180+1"]
[EndTime "14:51:36 PDT"]
[Termination "Kildepiotr won by resignation"]

1. d4 {[%clk 0:03:00.9]} 1... c5 {[%clk 0:02:58.1]} 2. d5 {[%clk 0:02:58.7]}
2... e5 {[%clk 0:02:57]} 3. c4 {[%clk 0:02:44]} 3... d6 {[%clk 0:02:56.6]} 4.
Nc3 {[%clk 0:02:44.3]} 4... Be7 {[%clk 0:02:56.6]} 5. e4 {[%clk 0:02:44.8]} 5...
Bg5 {[%clk 0:02:57.2]} 6. Nf3 {[%clk 0:02:41.6]} 6... Bxc1 {[%clk 0:02:56.8]} 7.
Rxc1 {[%clk 0:02:42.4]} 7... Ne7 {[%clk 0:02:57.1]} 8. Be2 {[%clk 0:02:41.1]}
8... O-O {[%clk 0:02:56.7]} 9. O-O {[%clk 0:02:41.7]} 9... Ng6 {[%clk
0:02:56.7]} 10. Re1 {[%clk 0:02:40.8]} 10... Nf4 {[%clk 0:02:55.7]} 11. Bf1
{[%clk 0:02:41.3]} 11... f5 {[%clk 0:02:52.6]} 12. a3 {[%clk 0:02:41]} 12... Nd7
{[%clk 0:02:51.1]} 13. exf5 {[%clk 0:02:37.8]} 13... Nf6 {[%clk 0:02:51]} 14. b4
{[%clk 0:02:32.3]} 14... b6 {[%clk 0:02:47.7]} 15. bxc5 {[%clk 0:02:28]} 15...
bxc5 {[%clk 0:02:47.7]} 16. Ng5 {[%clk 0:02:15.9]} 16... Bxf5 {[%clk 0:02:45.3]}
17. g3 {[%clk 0:02:11.1]} 17... h6 {[%clk 0:02:40.1]} 18. Nge4 {[%clk 0:02:02]}
18... Nxe4 {[%clk 0:02:38.8]} 19. Nxe4 {[%clk 0:02:02.4]} 19... Nh3+ {[%clk
0:02:33.7]} 20. Bxh3 {[%clk 0:01:36.1]} 20... Bxh3 {[%clk 0:02:34.6]} 21. Qh5
{[%clk 0:01:22.8]} 21... Bf5 {[%clk 0:02:29.7]} 22. Qe2 {[%clk 0:01:20.6]} 22...
Rb8 {[%clk 0:02:28.7]} 23. Rb1 {[%clk 0:01:15.9]} 23... Qd7 {[%clk 0:02:26]} 24.
Rb2 {[%clk 0:01:05.2]} 24... Bg4 {[%clk 0:02:20.1]} 25. Qd2 {[%clk 0:00:59.5]}
25... Bf3 {[%clk 0:02:16.4]} 26. Rxb8 {[%clk 0:00:56]} 26... Qh3 {[%clk
0:02:07.5]} 27. Rxf8+ {[%clk 0:00:52.1]} 27... Kxf8 {[%clk 0:02:08.4]} 0-1